bitfinex-derivatives/quotes_SOLF0:USTF0_20250505
["timestamp","ask_amount","ask_price","bid_price","bid_amount"]
[1746465542789,4.44558751,145.0,144.99,6.8978]
[1746465544689,4.44558751,145.0,144.98,6.8983]
[1746465544885,6.8974,145.01,144.98,6.8983]
[1746465545191,6.8974,145.01,144.99,6.8978]
[1746465545688,6.8968,145.02,144.99,6.8978]
[1746465546192,6.8972,145.01,144.97,24.36]
[1746465546689,6.8972,145.01,144.98,6.8981]
[1746465546988,6.8972,145.01,144.97,24.36]
[1746465547789,6.8972,145.01,144.99,6.898]
[1746465548393,6.8968,145.02,144.99,6.898]
[1746465549094,4.4407511,145.01,144.99,6.898]
[1746465549285,4.4407511,145.01,144.97,24.36]
[1746465549691,6.8981,144.99,144.94,24.3]
[1746465550087,6.8981,144.99,144.95,6.8997]
[1746465550285,6.8981,144.99,144.94,24.3]
[1746465550590,4.4407511,145.01,144.98,6.8985]
[1746465550780,4.4407511,145.01,144.94,28.3935]
[1746465550987,6.8979,145.0,144.94,28.3935]
[1746465551182,4.44070839,144.99,144.96,6.899]
[1746465551397,4.44070839,144.98,144.94,28.3935]
[1746465551690,4.44070839,144.97,144.96,6.8994]
[1746465552693,6.898,144.99,144.97,6.8989]
[1746465553093,6.898,144.99,144.94,28.3935]
[1746465553296,6.898,144.99,144.96,6.8992]
[1746465554096,6.8986,144.98,144.96,6.8992]
[1746465554691,6.8986,144.98,144.95,6.8997]
[1746465554892,28.7407511,145.01,144.94,24.3]
[1746465555394,6.8992,144.97,144.94,24.3]
[1746465555690,2.0284,145.0,144.94,24.3]
[1746465555889,28.7407511,145.01,144.94,24.3]
[1746465556291,28.7407511,145.01,144.96,6.8994]
[1746465556794,6.8981,144.99,144.96,6.8994]
[1746465556997,28.7407511,145.01,144.97,6.8988]
[1746465557199,6.8978,145.0,144.97,6.8988]
[1746465557497,28.7407511,145.01,144.96,6.899]
[1746465557796,6.8986,144.98,144.96,6.899]
[1746465558100,28.7407511,145.01,144.94,24.3]
[1746465558296,6.8992,144.97,144.94,24.3]
[1746465558801,6.8992,144.97,144.95,6.8997]
[1746465558997,4.45430592,144.96,144.95,6.8997]
[1746465559193,6.8992,144.97,144.95,6.8997]
[1746465560195,4.45450696,144.96,144.95,6.8997]
[1746465560394,6.8992,144.97,144.95,6.8997]
[1746465561200,4.45398256,144.96,144.95,6.8997]
[1746465561400,6.8992,144.97,144.95,6.8997]
[1746465562603,6.8994,144.96,144.94,31.2002]
[1746465563605,6.8999,144.95,144.94,24.3]
[1746465564005,6.8999,144.95,144.93,1.0]
[1746465564202,6.9004,144.94,144.93,1.0]
[1746465565006,6.9002,144.95,144.93,1.0]
[1746465565900,6.9002,144.95,144.93,7.9008]
[1746465567513,6.9002,144.95,144.93,1.0]
[1746465568513,6.9002,144.95,144.93,7.9008]
[1746465570617,4.1015,144.99,144.93,1.0]
[1746465570810,2.0927,144.99,144.93,1.0]
[1746465571313,6.8986,144.98,144.93,1.0]
[1746465572218,6.8986,144.98,144.96,6.8994]
[1746465572521,4.4407511,145.01,144.95,24.32]
[1746465572717,4.4407511,145.01,144.98,6.8982]
[1746465573023,11.3380511,145.01,144.98,6.8982]
[1746465573719,11.3380511,145.01,144.99,6.898]
[1746465574723,11.3380511,145.01,144.98,6.8982]
[1746465574916,11.3380511,145.01,144.95,24.32]
[1746465575523,11.3380511,145.01,144.99,6.8978]
[1746465575718,4.4407511,145.01,144.99,6.8978]
[1746465578626,4.4407511,145.01,145.0,6.8975]
[1746465579621,6.8948,145.06,145.03,6.8957]
[1746465579921,6.8945,145.07,145.03,6.8959]
[1746465580526,2.0353,145.08,145.02,6.8964]
[1746465581031,6.8954,145.05,145.02,6.8964]
[1746465581227,2.0353,145.08,145.03,6.896]
[1746465581435,2.0353,145.08,144.99,30.5637]
[1746465581623,6.8954,145.05,144.99,30.5637]
[1746465581823,6.8954,145.05,145.02,6.8964]
[1746465582028,6.8954,145.05,144.99,30.5637]
[1746465582325,28.3321,145.1,144.99,30.5637]
[1746465582925,6.8939,145.08,145.05,6.8949]
[1746465583132,6.8939,145.08,145.01,11.63981127]
[1746465583133,24.32,145.1,145.03,24.32]
[1746465583730,26.3389,145.13,145.03,24.32]
[1746465584123,6.8931,145.1,145.06,6.8947]
[1746465584430,26.3389,145.13,145.06,6.8947]
[1746465584829,6.8931,145.1,145.06,6.8947]
[1746465585029,26.3389,145.13,145.06,6.8947]
[1746465585833,6.8935,145.09,145.06,6.8947]
[1746465587733,6.8938,145.08,145.05,6.8949]
[1746465588232,6.8943,145.07,145.04,6.8955]
[1746465588425,6.8943,145.07,145.03,24.32]
[1746465588426,26.3389,145.13,145.03,24.32]
[1746465589732,6.893,145.1,145.07,6.894]
[1746465589932,26.3389,145.13,145.07,6.894]
[1746465590732,6.8931,145.1,145.07,6.894]
[1746465593633,6.8936,145.09,145.06,6.8945]
[1746465593835,6.8936,145.09,145.03,25.32]
[1746465594235,6.8936,145.09,145.06,6.8943]
[1746465595037,26.3389,145.13,145.06,6.8943]
[1746465595935,6.8935,145.09,145.07,6.8942]
[1746465597236,6.8935,145.09,145.04,2.0326]
[1746465597539,6.8935,145.09,145.06,6.8945]
[1746465597840,6.8935,145.09,145.04,2.0326]
[1746465598041,6.8935,145.09,145.07,6.8942]
[1746465598438,6.893,145.1,145.07,6.8942]
[1746465598836,26.3389,145.13,145.07,6.8942]
[1746465600138,6.8935,145.09,145.07,6.8942]
[1746465600440,6.8937,145.08,145.06,6.8945]
[1746465601342,6.8937,145.08,145.05,6.8949]
[1746465603141,6.8937,145.08,145.06,6.8945]
[1746465603343,6.8935,145.09,145.04,2.0326]
[1746465603546,26.3389,145.13,145.04,2.0326]
[1746465603745,6.8929,145.1,145.08,6.8935]
[1746465603944,26.3389,145.13,145.08,6.8935]
[1746465604446,6.8927,145.11,145.08,6.8935]
[1746465604744,26.3389,145.13,145.08,6.8935]
[1746465605245,6.8929,145.1,145.08,6.8935]
[1746465607649,26.3389,145.13,145.04,15.74951127]
[1746465607846,24.32,145.13,145.04,15.74951127]
[1746465608047,6.8921,145.12,145.04,17.87371127]
[1746465608745,4.2139,145.14,145.04,17.87371127]
[1746465608949,4.2139,145.14,145.07,11.63981127]
[1746465609249,6.8904,145.15,145.12,6.8914]
[1746465609449,6.8904,145.15,145.08,24.3]
[1746465610248,6.8904,145.15,145.13,6.8913]
[1746465610640,26.2886,145.17,145.08,24.3]
[1746465610847,2.0913,145.18,145.09,2.0904]
[1746465611148,6.8886,145.19,145.1,11.63981127]
[1746465611349,2.0483,145.22,145.17,6.8895]
[1746465611949,6.8882,145.2,145.17,6.8895]
[1746465613053,6.8886,145.19,145.17,6.8895]
[1746465613746,6.8886,145.19,145.16,6.8897]
[1746465613950,2.0483,145.22,145.16,6.8897]
[1746465614553,6.8888,145.19,145.16,6.8897]
[1746465615051,6.8888,145.19,145.17,6.8894]
[1746465615748,2.0483,145.22,145.18,6.8888]
[1746465615953,26.4597,145.23,145.18,6.8888]
[1746465616552,26.4597,145.23,145.19,6.8884]
[1746465616851,26.4597,145.23,145.15,24.3]
[1746465617050,26.4597,145.23,145.17,6.8892]
[1746465617248,26.4597,145.23,145.15,24.3]
[1746465617549,6.8882,145.2,145.17,6.8891]
[1746465619147,2.1597,145.23,145.18,6.8889]
[1746465619349,2.1597,145.23,145.15,24.3]
[1746465619656,6.8884,145.2,145.17,6.8892]
[1746465619855,2.1597,145.23,145.17,6.8892]
[1746465620051,2.1597,145.23,145.15,24.3]
[1746465620252,6.8888,145.19,145.16,6.8896]
[1746465620455,6.8888,145.19,145.15,24.3]
[1746465620654,6.8888,145.19,145.16,6.8897]
[1746465621054,6.8883,145.2,145.15,24.3]
[1746465621256,6.8883,145.2,145.17,6.8893]
[1746465623958,6.8885,145.19,145.17,6.8893]
[1746465624157,6.8885,145.19,145.15,24.3]
[1746465624158,2.1597,145.23,145.15,24.3]
[1746465624456,6.8888,145.19,145.15,24.3]
[1746465625054,6.8888,145.19,145.16,6.8898]
[1746465625255,6.8888,145.19,145.15,24.3]
[1746465626351,2.1597,145.23,145.15,24.3]
[1746465626653,6.8882,145.2,145.17,6.8892]
[1746465628056,6.8887,145.19,145.17,6.8892]
[1746465630558,6.8882,145.2,145.17,6.8892]
[1746465631057,2.1597,145.23,145.17,6.8892]
[1746465632262,6.8883,145.2,145.17,6.8892]
[1746465632660,6.8883,145.2,145.18,6.8889]
[1746465635262,6.8879,145.21,145.15,24.3]
[1746465636361,6.8879,145.21,145.18,6.8888]
[1746465637079,6.8879,145.21,145.19,6.8884]
[1746465638365,6.8879,145.21,145.18,6.8888]
[1746465639068,6.8882,145.2,145.18,6.8888]
[1746465639463,2.1597,145.23,145.19,6.8885]
[1746465639664,6.8876,145.22,145.19,6.8885]
[1746465639876,9.57266435,145.23,145.19,6.8885]
[1746465640173,6.8879,145.21,145.19,6.8885]
[1746465643167,7.41296435,145.21,145.15,31.71296435]
[1746465643675,6.8875,145.22,145.17,7.41296435]
[1746465643864,2.1597,145.23,145.17,7.41296435]
[1746465644170,6.8878,145.21,145.19,6.8883]
[1746465651280,6.8872,145.22,145.2,6.888]
[1746465651679,6.8872,145.22,145.17,31.69296435]
[1746465651879,6.8872,145.22,145.19,6.8883]
[1746465652277,6.8876,145.21,145.19,6.8883]
[1746465653079,6.8872,145.22,145.17,31.69296435]
[1746465654478,6.8876,145.21,145.19,6.8883]
[1746465655279,7.41296435,145.24,145.19,6.8883]
[1746465655280,7.41296435,145.25,145.2,6.888]
[1746465655473,7.41296435,145.25,145.19,7.41296435]
[1746465655880,6.8869,145.23,145.21,6.8873]
[1746465657685,7.41296435,145.23,145.17,24.28]
[1746465658081,7.41296435,145.23,145.18,7.41296435]
[1746465658481,7.41296435,145.25,145.18,7.41296435]
[1746465658884,6.8873,145.22,145.2,6.8878]
[1746465659485,6.8873,145.22,145.19,6.8882]
[1746465661586,6.8876,145.21,145.19,6.8882]
[1746465662587,6.888,145.2,145.18,14.30176435]
[1746465663392,6.8878,145.21,145.19,6.8885]
[1746465663690,7.41296435,145.23,145.18,7.41296435]
[1746465663894,6.8873,145.22,145.2,6.8879]
[1746465664192,6.8873,145.22,145.18,7.41296435]
[1746465665093,6.8873,145.22,145.19,6.8881]
[1746465665994,6.8876,145.21,145.19,6.8881]
[1746465666189,6.8876,145.21,145.18,14.30166435]
[1746465667898,6.8876,145.21,145.19,6.8885]
[1746465669401,6.8873,145.22,145.19,6.8885]
[1746465669602,26.4027,145.26,145.18,7.41296435]
[1746465669793,33.81566435,145.26,145.18,7.41296435]
[1746465669994,6.8864,145.24,145.18,7.41296435]
[1746465670502,33.81566435,145.26,145.18,7.41296435]
[1746465670698,6.8868,145.23,145.2,6.8877]
[1746465671501,6.8872,145.22,145.2,6.8877]
[1746465672306,6.8869,145.23,145.2,6.8877]
[1746465673904,6.8869,145.23,145.21,6.8875]
[1746465675303,33.81566435,145.26,145.2,6.8878]
[1746465676006,6.8869,145.23,145.2,6.8878]
[1746465678610,6.8869,145.23,145.21,6.8875]
[1746465679006,6.8869,145.23,145.18,7.41296435]
[1746465679201,6.8869,145.23,145.2,6.8876]
[1746465679406,6.8871,145.22,145.2,6.8876]
[1746465680109,6.8869,145.23,145.2,6.8876]
[1746465680309,6.8869,145.23,145.21,6.8875]
[1746465680509,33.81566435,145.26,145.21,6.8875]
[1746465680903,33.81566435,145.26,145.22,6.8871]
[1746465681302,6.8865,145.24,145.2,7.41296435]
[1746465682712,6.8865,145.24,145.21,6.8873]
[1746465683112,6.8866,145.23,145.21,6.8873]
[1746465685115,6.8872,145.22,145.2,6.8878]
[1746465685513,7.41296435,145.24,145.18,7.41296435]
[1746465685912,6.887,145.23,145.18,7.41296435]
[1746465686514,6.887,145.23,145.21,6.8874]
[1746465688921,6.8871,145.22,145.2,6.8878]
[1746465689621,6.8877,145.21,145.19,6.8883]
[1746465689920,7.41296435,145.24,145.17,24.28]
[1746465690310,6.8883,145.2,145.17,31.1691]
[1746465690821,6.8883,145.2,145.17,6.8891]
[1746465691020,6.8883,145.2,145.17,31.1491]
[1746465691318,6.8889,145.19,145.17,24.26]
[1746465692417,6.8889,145.19,145.17,31.1494]
[1746465693622,6.8889,145.19,145.17,24.26]
[1746465694622,6.8889,145.19,145.17,31.1494]
[1746465713142,6.8883,145.2,145.18,6.889]
[1746465713445,6.8883,145.2,145.17,24.26]
[1746465714039,6.8883,145.2,145.17,31.1491]
[1746465714843,6.8883,145.2,145.18,6.8889]
[1746465717745,6.8878,145.21,145.19,6.8885]
[1746465717943,7.41296435,145.24,145.19,7.41296435]
[1746465718141,33.81566435,145.26,145.19,7.41296435]
[1746465719037,6.8864,145.24,145.22,6.887]
[1746465720948,31.69296435,145.26,145.21,7.41296435]
[1746465721139,7.41296435,145.26,145.21,31.67296435]
[1746465721537,6.8862,145.24,145.22,6.8868]
[1746465721735,24.26,145.29,145.23,7.41296435]
[1746465721940,31.67296435,145.29,145.23,7.41296435]
[1746465722842,7.41296435,145.29,145.26,6.885]
[1746465723241,7.41296435,145.29,145.23,7.41296435]
[1746465723542,6.8847,145.28,145.25,6.8854]
[1746465724149,6.8847,145.28,145.23,7.41296435]
[1746465724747,6.8847,145.28,145.26,6.8851]
[1746465725348,6.8847,145.28,145.25,6.8855]
[1746465725650,6.8848,145.27,145.25,6.8855]
[1746465726752,6.8844,145.28,145.25,6.8855]
[1746465727251,6.8847,145.27,145.25,6.8855]
[1746465727753,7.41296435,145.29,145.25,6.8855]
[1746465728055,6.8846,145.28,145.25,31.1255]
[1746465728353,7.41296435,145.29,145.25,24.24]
[1746465728747,6.8845,145.28,145.25,24.24]
[1746465729047,6.8845,145.28,145.25,31.1254]
[1746465732350,6.8845,145.28,145.25,24.24]
[1746465733252,6.8845,145.28,145.26,6.8851]
[1746465735358,6.884,145.29,145.27,6.8846]
[1746465735554,2.1255,145.32,145.27,7.41296435]
[1746465735858,6.8831,145.31,145.28,6.884]
[1746465737257,9.55926435,145.33,145.27,7.41296435]
[1746465737655,9.55926435,145.33,145.28,6.8839]
[1746465737857,6.8831,145.31,145.28,6.8839]
[1746465738357,6.8831,145.31,145.29,6.8837]
[1746465738852,6.8831,145.31,145.27,7.41296435]
[1746465739858,6.8831,145.31,145.28,6.884]
[1746465740058,6.8831,145.31,145.27,7.41296435]
[1746465740357,6.8831,145.31,145.28,6.8838]
[1746465740861,6.8831,145.31,145.27,7.41296435]
[1746465741758,6.8831,145.31,145.29,6.8836]
[1746465748665,6.8831,145.31,145.28,6.884]
[1746465748962,6.8831,145.31,145.27,7.41296435]
[1746465749562,6.8831,145.31,145.29,6.8837]
[1746465756771,6.8836,145.3,145.25,24.24]
[1746465756966,6.8836,145.3,145.26,7.41296435]
[1746465757870,6.8836,145.3,145.28,6.8841]
[1746465760773,6.8838,145.29,145.27,6.8845]
[1746465761273,7.41296435,145.33,145.27,6.8845]
[1746465761775,6.8836,145.3,145.28,6.8841]
[1746465762474,6.8831,145.31,145.28,6.8841]
[1746465762773,7.41296435,145.33,145.28,6.8841]
[1746465762973,7.41296435,145.33,145.29,6.8835]
[1746465763174,6.883,145.31,145.29,6.8835]
[1746465764176,6.8833,145.3,145.28,6.8841]
[1746465765378,6.883,145.31,145.29,6.8838]
[1746465765880,6.8833,145.3,145.28,14.29696435]
[1746465766070,6.8833,145.3,145.28,6.884]
[1746465766267,7.41296435,145.33,145.28,6.884]
[1746465766476,6.8832,145.31,145.28,6.884]
[1746465766679,6.8832,145.31,145.27,7.41296435]
[1746465767880,6.8832,145.31,145.28,6.8838]
[1746465768278,6.8833,145.3,145.28,6.8838]
[1746465770581,6.8833,145.3,145.27,7.41296435]
[1746465770582,6.883,145.31,145.29,6.8838]
[1746465772577,6.883,145.31,145.28,6.884]
[1746465772779,6.883,145.31,145.27,7.41296435]
[1746465773779,6.883,145.31,145.29,6.8837]
[1746465777686,7.41296435,145.33,145.27,6.8843]
[1746465777983,7.41296435,145.31,145.27,6.8843]
[1746465778279,6.8836,145.3,145.28,1.0]
[1746465779082,6.8836,145.3,145.28,7.8842]
[1746465780485,6.8838,145.29,145.28,1.0]
[1746465782486,7.41296435,145.34,145.28,1.0]
[1746465782687,7.41296435,145.34,145.28,8.41296435]
[1746465782991,7.41296435,145.34,145.29,6.8835]
[1746465783787,6.8829,145.31,145.29,6.8835]
[1746465784289,6.8827,145.32,145.3,6.8833]
[1746465784482,7.41296435,145.34,145.28,32.61296435]
[1746465784678,24.24,145.35,145.32,6.8821]
[1746465784885,6.8816,145.34,145.32,6.8821]
[1746465785085,9.39056435,145.36,145.3,7.41296435]
[1746465785283,1.9776,145.36,145.33,6.8816]
[1746465785485,8.8584,145.36,145.33,6.8816]
[1746465785678,6.8808,145.36,145.32,7.41296435]
[1746465785887,6.8804,145.37,145.34,6.8812]
[1746465786085,31.61296435,145.38,145.34,6.8812]
[1746465786786,7.41296435,145.36,145.32,24.2]
[1746465787293,7.41296435,145.34,145.28,32.61296435]
[1746465787589,6.8831,145.31,145.28,39.49696435]
[1746465787789,7.41296435,145.34,145.28,39.49696435]
[1746465788186,6.8832,145.31,145.28,39.49696435]
[1746465789188,6.8833,145.3,145.28,39.49696435]
[1746465789692,6.8833,145.3,145.28,32.084]
[1746465789878,6.883,145.31,145.28,32.084]
[1746465790378,6.8834,145.3,145.28,32.084]
[1746465791889,6.883,145.31,145.28,32.084]
[1746465792989,6.883,145.31,145.28,7.884]
[1746465793592,6.883,145.31,145.29,6.8838]
[1746465793793,6.8835,145.3,145.28,1.0]
[1746465794294,6.8835,145.3,145.28,7.884]
[1746465795792,24.2,145.34,145.28,1.0]
[1746465796401,11.56707463,145.33,145.28,1.0]
[1746465797008,6.8838,145.29,145.28,1.0]
[1746465797593,6.8853,145.26,145.24,24.2]
[1746465798092,6.8853,145.26,145.24,31.0861]
[1746465798490,24.2,145.3,145.24,24.2]
[1746465798491,6.8845,145.28,145.24,24.2]
[1746465798695,6.8845,145.28,145.25,6.8853]
[1746465798899,24.2,145.3,145.25,6.8853]
[1746465799090,6.8849,145.27,145.25,6.8853]
[1746465799290,6.8849,145.27,145.24,31.0859]
[1746465800092,6.8855,145.26,145.24,24.2]
[1746465800298,24.2,145.3,145.23,6.8864]
[1746465800595,35.76707463,145.3,145.23,6.8866]
[1746465800794,1.9636,145.29,145.23,6.8866]
[1746465801997,6.8855,145.26,145.23,6.8866]
[1746465807806,6.8858,145.25,145.23,6.8866]
[1746465807991,6.8858,145.25,145.22,6.8869]
[1746465808295,6.8858,145.25,145.21,24.2]
[1746465808497,6.8858,145.25,145.22,6.8866]
[1746465809903,6.8862,145.24,145.22,6.8866]
[1746465810100,1.9636,145.29,145.22,6.8866]
[1746465810300,1.9636,145.29,145.23,6.8864]
[1746465810503,6.8856,145.26,145.23,6.8864]
[1746465812307,6.8856,145.26,145.24,6.8861]
[1746465812504,6.8846,145.28,145.24,7.40751579]
[1746465812812,6.8846,145.28,145.25,6.8854]
[1746465813402,6.8849,145.27,145.25,6.8854]
[1746465814212,6.8849,145.27,145.24,14.29341579]
[1746465815911,6.8849,145.27,145.25,6.8856]
[1746465816215,6.8849,145.27,145.24,7.40751579]
[1746465816608,6.8849,145.27,145.24,14.29331579]
[1746465816907,6.8853,145.26,145.24,14.29331579]
[1746465818015,7.40751579,145.27,145.22,6.8868]
[1746465818519,7.40751579,145.27,145.21,24.2]
[1746465818722,6.8862,145.24,145.21,31.0873]
[1746465821024,6.8867,145.23,145.21,31.0873]
[1746465822122,6.8863,145.24,145.21,24.2]
[1746465822420,3.9588,145.29,145.21,24.2]
[1746465822720,3.9588,145.29,145.21,31.0873]
[1746465822721,6.8866,145.24,145.21,31.0873]
[1746465823119,6.8871,145.22,145.21,24.2]
[1746465823518,6.8871,145.22,145.18,26.3064]
[1746465824019,6.8871,145.22,145.2,6.888]
[1746465827023,6.8868,145.23,145.2,6.888]
[1746465827228,6.8868,145.23,145.21,6.8874]
[1746465827521,24.18,145.26,145.18,26.3064]
[1746465828228,6.8864,145.24,145.21,6.8872]
[1746465828718,24.18,145.26,145.18,26.3064]
[1746465829024,6.8859,145.25,145.23,6.8866]
[1746465831227,6.8859,145.25,145.22,6.8869]
[1746465831427,6.8862,145.24,145.22,6.8869]
[1746465831729,24.18,145.26,145.23,6.8866]
[1746465832828,6.8859,145.25,145.23,6.8866]
[1746465833229,6.8859,145.25,145.22,6.8869]
[1746465834932,6.8859,145.25,145.23,6.8866]
[1746465835126,6.8859,145.25,145.18,26.3064]
[1746465835625,6.8859,145.25,145.22,6.8868]
[1746465835838,6.8862,145.24,145.22,6.8868]
[1746465836834,6.8862,145.24,145.21,6.8873]
[1746465837831,6.8858,145.25,145.22,6.887]
[1746465840333,6.8862,145.24,145.22,6.887]
[1746465840537,6.8862,145.24,145.22,7.887]
[1746465841139,6.8859,145.25,145.22,7.887]
[1746465841543,6.8859,145.25,145.23,6.8866]
[1746465841936,7.40886318,145.28,145.23,7.40886318]
[1746465842133,7.40886318,145.28,145.24,6.8858]
[1746465842741,6.8852,145.26,145.24,6.8858]
[1746465842944,7.40886318,145.28,145.25,6.8857]
[1746465843641,6.885,145.27,145.25,6.8857]
[1746465844142,31.084,145.29,145.26,6.8848]
[1746465844342,6.884,145.29,145.25,7.40886318]
[1746465844545,7.40886318,145.31,145.25,7.40886318]
[1746465844737,6.8835,145.3,145.27,6.8843]
[1746465844931,7.40886318,145.31,145.26,24.18]
[1746465845343,6.8831,145.31,145.29,6.8835]
[1746465846143,6.8831,145.31,145.28,6.884]
[1746465849243,6.8831,145.31,145.29,6.8838]
[1746465849446,6.8831,145.31,145.26,24.18]
[1746465849846,6.8831,145.31,145.28,6.884]
[1746465851248,6.8831,145.31,145.29,6.8837]
[1746465851638,6.8826,145.32,145.29,6.8837]
[1746465851847,26.2906,145.35,145.29,6.8837]
[1746465852455,6.883,145.31,145.28,6.884]
[1746465852647,26.2906,145.35,145.26,24.18]
[1746465853252,6.8827,145.32,145.29,6.8835]
[1746465853842,6.8827,145.32,145.3,6.8833]
[1746465854952,24.18,145.35,145.26,24.18]
[1746465855146,3.9714,145.37,145.27,11.56710539]
[1746465855649,6.8812,145.35,145.33,6.8816]
[1746465857855,6.8812,145.35,145.32,6.8822]
[1746465860056,6.8812,145.35,145.33,6.8818]
[1746465861055,6.8807,145.36,145.34,6.8813]
[1746465861252,24.18,145.38,145.31,24.18]
[1746465861754,6.8814,145.34,145.31,24.18]
[1746465862056,24.18,145.38,145.31,24.18]
[1746465862354,6.8823,145.32,145.31,24.18]
[1746465862555,24.18,145.38,145.28,24.16]
[1746465862753,11.56710539,145.36,145.28,24.16]
[1746465862952,6.8831,145.31,145.28,31.0439]
[1746465863755,1.9597,145.35,145.28,24.16]
[1746465863952,11.56710539,145.39,145.28,24.16]
[1746465864149,24.16,145.38,145.29,1.9752]
[1746465864549,24.16,145.38,145.3,11.56710539]
[1746465864744,6.8806,145.36,145.33,6.8815]
[1746465866960,6.88,145.37,145.32,24.16]
[1746465867156,24.16,145.38,145.32,24.16]
[1746465867655,6.8803,145.37,145.34,6.8812]
[1746465874164,6.8803,145.37,145.35,6.8809]
[1746465874360,31.0398,145.38,145.35,6.8809]
[1746465874662,24.16,145.38,145.35,6.8809]
[1746465874863,6.8802,145.37,145.35,6.8809]
[1746465875964,6.8802,145.37,145.34,6.8812]
[1746465877569,6.8802,145.37,145.35,6.8808]
[1746465878363,6.8802,145.37,145.34,6.8811]
[1746465878865,6.8802,145.37,145.35,6.8809]
[1746465880166,4.1559,145.4,145.34,6.8812]
[1746465881065,6.8802,145.37,145.34,6.8812]
[1746465882560,6.8802,145.37,145.35,6.8809]
[1746465883668,6.8802,145.37,145.34,6.8812]
[1746465884562,6.8805,145.36,145.34,6.8812]
[1746465885066,6.8802,145.37,145.34,6.8812]
[1746465886970,6.8802,145.37,145.35,6.8809]
[1746465887573,6.8793,145.39,145.37,6.88]
[1746465887871,4.1559,145.4,145.32,24.16]
[1746465888170,6.8795,145.38,145.36,6.8802]
[1746465889174,6.8793,145.39,145.36,6.8802]
[1746465889471,6.8793,145.39,145.32,24.16]
[1746465889665,4.1559,145.4,145.32,24.16]
[1746465890063,6.8797,145.38,145.36,6.8803]
[1746465891771,6.8792,145.39,145.32,24.16]
[1746465891973,2.1245,145.4,145.32,24.16]
[1746465892172,6.8796,145.38,145.36,6.8802]
[1746465892372,2.1245,145.4,145.32,24.16]
[1746465892673,6.8793,145.39,145.32,24.16]
[1746465893271,6.8793,145.39,145.36,6.8801]
[1746465894073,6.8796,145.38,145.36,6.8801]
[1746465894369,2.1245,145.4,145.32,24.16]
[1746465894574,6.8802,145.37,145.32,24.16]
[1746465895173,6.8802,145.37,145.34,6.8811]
[1746465895369,6.8802,145.37,145.32,24.16]
[1746465895769,6.8802,145.37,145.34,6.881]
[1746465896072,6.8805,145.36,145.34,6.881]
[1746465897378,6.8809,145.35,145.33,6.8817]
[1746465897977,6.8807,145.36,145.34,6.8814]
[1746465900781,6.8809,145.35,145.33,6.8817]
[1746465901376,4.1718,145.4,145.33,6.8817]
[1746465901577,6.8807,145.36,145.34,6.8814]
[1746465902081,6.8802,145.37,145.35,6.8809]
[1746465903680,6.8798,145.38,145.35,6.8809]
[1746465904381,6.8801,145.37,145.34,6.8812]
[1746465904582,4.1718,145.4,145.32,25.16]
[1746465904875,6.8797,145.38,145.35,6.8807]
[1746465905876,6.8803,145.37,145.34,6.8812]
[1746465906184,6.8803,145.37,145.33,7.39605389]
[1746465906485,6.8803,145.37,145.35,6.8807]
[1746465908389,6.8797,145.38,145.36,6.8805]
[1746465909584,6.8797,145.38,145.33,7.39605389]
[1746465910180,6.8797,145.38,145.35,6.8806]
[1746465910782,6.8801,145.37,145.35,6.8806]
[1746465913187,6.8805,145.36,145.35,6.8806]
[1746465913387,11.56785389,145.4,145.35,6.8806]